fUST/lending_fUST_20250219
["ID","MTS","AMOUNT","RATE_DAILY","PERIOD"]
[353623773,1739964641728,-2537.42,0.00013863,2]
[353623774,1739964641739,-194.26142962,0.00013863,2]
[353623775,1739964641750,-500.0,0.00013863,2]
[353623776,1739964641759,-611.95,0.00013863,2]
[353623777,1739964641768,-500.0,0.00013863,2]
[353623778,1739964641779,-500.0,0.00013863,2]
[353623779,1739964641789,-500.0,0.00013863,2]
[353623780,1739964641798,-528.97,0.00013863,2]
[353623781,1739964641808,-627.10429969,0.00013863,2]
[353623782,1739964641819,-500.0,0.00013863,2]
[353623783,1739964641831,-500.0,0.00013863,2]
[353623784,1739964641842,-345.88486826,0.00013863,2]
[353623785,1739964641852,-500.0,0.00013863,2]
[353623786,1739964641862,-500.0,0.00013863,2]
[353623787,1739964641871,-500.0,0.00013863,2]
[353623788,1739964641881,-766.55,0.00013863,2]
[353623789,1739964641891,-500.0,0.00013863,2]
[353623790,1739964641901,-2582.71,0.00013863,2]
[353623791,1739964641910,-500.0,0.00013863,2]
[353623792,1739964641920,-500.0,0.00013863,2]
[353623793,1739964641930,-500.0,0.00013863,2]
[353623794,1739964641939,-3115.95,0.00013863,2]
[353623795,1739964641948,-500.0,0.00013863,2]
[353623796,1739964641957,-500.0,0.00013863,2]
[353623797,1739964641967,-1030.49,0.00013863,2]
[353623798,1739964641977,-500.0,0.00013863,2]
[353623799,1739964641986,-557.7,0.00013863,2]
[353623800,1739964641996,-6904.26,0.00013863,2]
[353623801,1739964642006,-500.0,0.00013863,2]
[353623802,1739964642015,-500.0,0.00013863,2]
[353623803,1739964642025,-500.0,0.00013863,2]
[353623804,1739964642034,-500.0,0.00013863,2]
[353623805,1739964642043,-151.0,0.000139,2]
[353623806,1739964642052,-500.0,0.00013945,2]
[353623807,1739964642062,-500.0,0.00013945,2]
[353623808,1739964642071,-500.0,0.00013945,2]
[353623809,1739964642080,-500.0,0.00013945,2]
[353623810,1739964642090,-500.0,0.00013945,2]
[353623811,1739964642099,-500.0,0.00013945,2]
[353623812,1739964642109,-500.0,0.00013945,2]
[353623813,1739964642118,-500.0,0.00013945,2]
[353623814,1739964642128,-500.0,0.00013945,2]
[353623815,1739964642137,-2537.42,0.00013945,2]
[353623816,1739964642146,-500.0,0.00013945,2]
[353623817,1739964642155,-611.95,0.00013945,2]
[353623818,1739964642165,-500.0,0.00013945,2]
[353623819,1739964642174,-500.0,0.00013945,2]
[353623820,1739964642183,-500.0,0.00013945,2]
[353623821,1739964642192,-477.69336587,0.00013945,2]
[353623822,1739964642203,-500.0,0.00013945,2]
[353623823,1739964642212,-500.0,0.00013945,2]
[353623824,1739964642221,-500.0,0.00013945,2]
[353623825,1739964642231,-500.0,0.00013945,2]
[353623826,1739964642240,-766.55,0.00013945,2]
[353623827,1739964642249,-500.0,0.00013945,2]
[353623828,1739964642259,-2582.71,0.00013945,2]
[353623829,1739964642268,-500.0,0.00013945,2]
[353623830,1739964642278,-500.0,0.00013945,2]
[353623831,1739964642287,-3115.95,0.00013945,2]
[353623832,1739964642297,-500.0,0.00013945,2]
[353623833,1739964642306,-500.0,0.00013945,2]
[353623834,1739964642315,-1030.49,0.00013945,2]
[353623835,1739964642324,-500.0,0.00013945,2]
[353623836,1739964642332,-6904.26,0.00013945,2]
[353623837,1739964642341,-500.0,0.00013945,2]
[353623838,1739964642349,-500.0,0.00013945,2]
[353623839,1739964642358,-500.0,0.00013945,2]
[353623840,1739964642367,-500.0,0.00013945,2]
[353623841,1739964642376,-420.0,0.00013951,2]
[353623842,1739964642387,-500.0,0.00014027,2]
[353623843,1739964642397,-500.0,0.00014027,2]
[353623844,1739964642407,-500.0,0.00014027,2]
[353623845,1739964642416,-500.0,0.00014027,2]
[353623847,1739964642425,-500.0,0.00014027,2]
[353623848,1739964642435,-500.0,0.00014027,2]
[353623850,1739964642445,-500.0,0.00014027,2]
[353623852,1739964642455,-500.0,0.00014027,2]
[353623854,1739964642466,-505.5,0.00014027,2]
[353623856,1739964642475,-2537.42,0.00014027,2]
[353623858,1739964642485,-270.02,0.00014027,2]
[353623860,1739964642494,-611.95,0.00014027,2]
[353623862,1739964642503,-500.0,0.00014027,2]
[353623864,1739964642513,-500.0,0.00014027,2]
[353623866,1739964642524,-500.0,0.00014027,2]
[353623868,1739964642533,-500.0,0.00014027,2]
[353623870,1739964642543,-500.0,0.00014027,2]
[353623871,1739964642552,-500.0,0.00014027,2]
[353623872,1739964642562,-500.0,0.00014027,2]
[353623874,1739964642571,-766.55,0.00014027,2]
[353623875,1739964642580,-500.0,0.00014027,2]
[353623876,1739964642590,-2582.71,0.00014027,2]
[353623877,1739964642600,-500.0,0.00014027,2]
[353623878,1739964642610,-500.0,0.00014027,2]
[353623879,1739964642619,-3115.95,0.00014027,2]
[353623880,1739964642629,-500.0,0.00014027,2]
[353623881,1739964642639,-500.0,0.00014027,2]
[353623882,1739964642648,-1030.49,0.00014027,2]
[353623883,1739964642658,-500.0,0.00014027,2]
[353623884,1739964642667,-6904.26,0.00014027,2]
[353623885,1739964642677,-500.0,0.00014027,2]
[353623886,1739964642686,-500.0,0.00014027,2]
[353623887,1739964642696,-252.80722936,0.00014027,2]
[353623888,1739964642705,-500.0,0.00014027,2]
[353623889,1739964642715,-500.0,0.0001403,2]
[353623890,1739964642724,-151.0,0.000141,2]
[353623891,1739964642734,-293.94,0.00014109,2]
[353623892,1739964642744,-500.0,0.00014109,2]
[353623893,1739964642753,-500.0,0.00014109,2]
[353623894,1739964642763,-500.0,0.00014109,2]
[353623895,1739964642774,-390.25,0.00014109,2]
[353623896,1739964642784,-500.0,0.00014109,2]
[353623897,1739964642793,-538.84,0.00014109,2]
[353623898,1739964642803,-500.0,0.00014109,2]
[353623899,1739964642813,-2537.42,0.00014109,2]
[353623900,1739964642824,-611.95,0.00014109,2]
[353623901,1739964642834,-562.34,0.00014109,2]
[353623902,1739964642843,-320.0,0.00014109,2]
[353623903,1739964642852,-500.0,0.00014109,2]
[353623904,1739964642862,-500.0,0.00014109,2]
[353623905,1739964642873,-500.0,0.00014109,2]
[353623906,1739964642885,-500.0,0.00014109,2]
[353623907,1739964642897,-500.0,0.00014109,2]
[353623908,1739964642907,-766.55,0.00014109,2]
[353623909,1739964642917,-500.0,0.00014109,2]
[353623910,1739964642928,-2582.71,0.00014109,2]
[353623911,1739964642938,-500.0,0.00014109,2]
[353623912,1739964642948,-500.0,0.00014109,2]
[353623913,1739964642958,-3115.95,0.00014109,2]
[353623914,1739964642968,-500.0,0.00014109,2]
[353623915,1739964642977,-500.0,0.00014109,2]
[353623916,1739964642986,-1030.49,0.00014109,2]
[353623917,1739964642995,-500.0,0.00014109,2]
[353623918,1739964643004,-6904.26,0.00014109,2]
[353623919,1739964643013,-500.0,0.00014109,2]
[353623920,1739964643024,-500.0,0.00014109,2]
[353623921,1739964643034,-500.0,0.00014109,2]
[353623922,1739964643043,-179.67658215,0.00014112,2]
[353623923,1739964643053,-500.0,0.00014136,2]
[353623924,1739964643062,-500.66690975,0.00014136,2]
[353623925,1739964643080,-239.6224219,0.00014191,2]
[353623926,1739964643090,-500.0,0.00014191,2]
[353623927,1739964643100,-500.0,0.00014191,2]
[353623928,1739964643111,-500.0,0.00014191,2]
[353623929,1739964643121,-619.86,0.00014191,2]
[353623930,1739964643131,-2537.42,0.00014191,2]
[353623931,1739964643141,-611.95,0.00014191,2]
[353623933,1739964643151,-500.0,0.00014191,2]
[353623934,1739964643160,-500.0,0.00014191,2]
[353623935,1739964643170,-500.0,0.00014191,2]
[353623936,1739964643180,-500.0,0.00014191,2]
[353623937,1739964643190,-500.0,0.00014191,2]
[353623938,1739964643200,-766.55,0.00014191,2]
[353623940,1739964643210,-500.0,0.00014191,2]
[353623942,1739964643219,-2582.71,0.00014191,2]
[353623943,1739964643230,-500.0,0.00014191,2]
[353623945,1739964643239,-500.0,0.00014191,2]
[353623947,1739964643249,-3115.95,0.00014191,2]
[353623949,1739964643258,-500.0,0.00014191,2]
[353623950,1739964643268,-500.0,0.00014191,2]
[353623951,1739964643278,-1030.49,0.00014191,2]
[353623952,1739964643288,-500.0,0.00014191,2]
[353623953,1739964643298,-6904.26,0.00014191,2]
[353623955,1739964643307,-511.15802953,0.00014191,2]
[353623957,1739964643317,-500.0,0.00014191,2]
[353623959,1739964643326,-500.0,0.00014191,2]
[353623961,1739964643336,-151.0,0.000142,2]
[353623962,1739964643345,-151.0,0.000142,2]
[353623964,1739964643357,-181.2,0.00014238,2]
[353623966,1739964643366,-500.0,0.00014258,2]
[353623967,1739964643377,-500.0,0.00014258,2]
[353623969,1739964643389,-500.0,0.00014273,2]
[353623971,1739964643398,-500.0,0.00014273,2]
[353623973,1739964643408,-512.45015931,0.00014273,2]
[353623974,1739964643417,-2537.42,0.00014273,2]
[353623975,1739964643427,-611.95,0.00014273,2]
[353623977,1739964643437,-500.0,0.00014273,2]
[353623979,1739964643447,-500.0,0.00014273,2]
[353623985,1739964643543,-500.0,0.00014273,2]
[353623986,1739964643554,-293.01103924,0.00014273,2]
[353623987,1739964643563,-500.0,0.00014273,2]
[353623988,1739964643573,-766.55,0.00014273,2]
[353623989,1739964643583,-500.0,0.00014273,2]
[353623990,1739964643593,-2582.71,0.00014273,2]
[353623992,1739964643603,-500.0,0.00014273,2]
[353623994,1739964643612,-500.0,0.00014273,2]
[353623996,1739964643622,-3115.95,0.00014273,2]
[353623998,1739964643631,-500.0,0.00014273,2]
[353624000,1739964643641,-500.0,0.00014273,2]
[353624002,1739964643650,-1030.49,0.00014273,2]
[353624003,1739964643659,-500.0,0.00014273,2]
[353624004,1739964643669,-6904.26,0.00014273,2]
[353624005,1739964643678,-500.0,0.00014273,2]
[353624007,1739964643688,-500.0,0.00014273,2]
[353624009,1739964643698,-170.40326072,0.00014293,2]
[353624011,1739964643708,-548.61166477,0.00014355,2]
[353624014,1739964643718,-624.4,0.00014356,2]
[353624016,1739964643727,-2537.42,0.00014356,2]
[353624018,1739964643736,-611.95,0.00014356,2]
[353624020,1739964643746,-464.05,0.00014356,2]
[353624022,1739964643755,-500.0,0.00014356,2]
[353624023,1739964643765,-500.0,0.00014356,2]
[353624024,1739964643774,-766.55,0.00014356,2]
[353624025,1739964643786,-500.0,0.00014356,2]
[353624026,1739964643796,-2582.71,0.00014356,2]
[353624027,1739964643805,-500.0,0.00014356,2]
[353624028,1739964643814,-500.0,0.00014356,2]
[353624029,1739964643824,-3115.95,0.00014356,2]
[353624030,1739964643833,-500.0,0.00014356,2]
[353624031,1739964643843,-500.0,0.00014356,2]
[353624032,1739964643852,-1030.49,0.00014356,2]
[353624033,1739964643862,-500.0,0.00014356,2]
[353624034,1739964643871,-6904.26,0.00014356,2]
[353624035,1739964643880,-500.0,0.00014356,2]
[353624036,1739964643890,-500.0,0.00014356,2]
[353624037,1739964643900,-151.0,0.000144,2]
[353624038,1739964643909,-1000.0,0.00014404,2]
[353624039,1739964643920,-500.0,0.00014404,2]
[353624040,1739964643929,-2537.42,0.00014438,2]
[353624041,1739964643939,-611.95,0.00014438,2]
[353624042,1739964643949,-500.0,0.00014438,2]
[353624043,1739964643960,-500.0,0.00014438,2]
[353624044,1739964643970,-766.55,0.00014438,2]
[353624045,1739964643979,-500.0,0.00014438,2]
[353624046,1739964643989,-2582.71,0.00014438,2]
[353624047,1739964643999,-500.0,0.00014438,2]
[353624048,1739964644008,-500.0,0.00014438,2]
[353624049,1739964644018,-3115.95,0.00014438,2]
[353624050,1739964644027,-500.0,0.00014438,2]
[353624051,1739964644037,-500.0,0.00014438,2]
[353624052,1739964644047,-1030.49,0.00014438,2]
[353624053,1739964644056,-500.0,0.00014438,2]
[353624054,1739964644066,-6904.26,0.00014438,2]
[353624055,1739964644075,-500.0,0.00014438,2]
[353624056,1739964644086,-500.0,0.00014438,2]
[353624057,1739964644095,-700.0,0.00014438,2]
[353624058,1739964644105,-151.0,0.000145,2]
[353624059,1739964644114,-151.0,0.000145,2]
[353624060,1739964644123,-224392.04207809,0.000145,2]
[353624061,1739964644133,-500.0,0.0001452,2]
[353624062,1739964644142,-500.0,0.0001452,2]
[353624063,1739964644152,-2537.42,0.0001452,2]
[353624064,1739964644162,-611.95,0.0001452,2]
[353624065,1739964644177,-500.0,0.0001452,2]
[353624066,1739964644187,-500.0,0.0001452,2]
[353624067,1739964644196,-766.55,0.0001452,2]
[353624068,1739964644206,-272.9,0.0001452,2]
[353624069,1739964644215,-2582.71,0.0001452,2]
[353624070,1739964644224,-500.0,0.0001452,2]
[353624071,1739964644233,-500.0,0.0001452,2]
[353624072,1739964644243,-3115.95,0.0001452,2]
[353624073,1739964644253,-500.0,0.0001452,2]
[353624074,1739964644263,-500.0,0.0001452,2]
[353624075,1739964644273,-1030.49,0.0001452,2]
[353624076,1739964644282,-500.0,0.0001452,2]
[353624077,1739964644291,-6904.26,0.0001452,2]
[353624078,1739964644300,-500.0,0.0001452,2]
[353624079,1739964644310,-500.0,0.0001452,2]
[353624080,1739964644319,-503.62720318,0.00014578,2]
[353624081,1739964644328,-2537.42,0.00014602,2]
[353624082,1739964644338,-611.95,0.00014602,2]
[353624083,1739964644347,-500.0,0.00014602,2]
[353624084,1739964644357,-500.0,0.00014602,2]
[353624085,1739964644366,-766.55,0.00014602,2]
[353624086,1739964644376,-2582.71,0.00014602,2]
[353624087,1739964644388,-500.0,0.00014602,2]
[353624088,1739964644396,-500.0,0.00014602,2]
[353624089,1739964644405,-3115.95,0.00014602,2]
[353624090,1739964644414,-500.0,0.00014602,2]
[353624091,1739964644423,-500.0,0.00014602,2]
[353624092,1739964644433,-1030.49,0.00014602,2]
[353624093,1739964644443,-500.0,0.00014602,2]
[353624094,1739964644453,-6904.26,0.00014602,2]
[353624095,1739964644462,-500.0,0.00014602,2]
[353624096,1739964644472,-500.0,0.00014602,2]
[353624097,1739964644482,-165.729,0.00014614,2]
[353624098,1739964644492,-2537.42,0.00014684,2]
[353624099,1739964644502,-611.95,0.00014684,2]
[353624100,1739964644511,-500.0,0.00014684,2]
[353624101,1739964644521,-500.0,0.00014684,2]
[353624102,1739964644531,-766.55,0.00014684,2]
[353624103,1739964644540,-2582.71,0.00014684,2]
[353624104,1739964644550,-500.0,0.00014684,2]
[353624105,1739964644560,-500.0,0.00014684,2]
[353624106,1739964644569,-3115.95,0.00014684,2]
[353624107,1739964644579,-500.0,0.00014684,2]
[353624108,1739964644589,-500.0,0.00014684,2]
[353624109,1739964644599,-1030.49,0.00014684,2]
[353624110,1739964644609,-500.0,0.00014684,2]
[353624111,1739964644620,-6904.26,0.00014684,2]
[353624112,1739964644630,-500.0,0.00014684,2]
[353624113,1739964644642,-500.0,0.00014684,2]
[353624114,1739964644652,-1000.0,0.00014684,2]
[353624115,1739964644662,-151.0,0.000147,2]
[353624116,1739964644672,-500.64646587,0.00014732,2]
[353624117,1739964644682,-2537.42,0.00014767,2]
[353624118,1739964644691,-611.95,0.00014767,2]
[353624119,1739964644701,-500.0,0.00014767,2]
[353624120,1739964644711,-500.0,0.00014767,2]
[353624121,1739964644720,-766.55,0.00014767,2]
[353624122,1739964644729,-2582.71,0.00014767,2]
[353624123,1739964644739,-500.0,0.00014767,2]
[353624124,1739964644748,-3115.95,0.00014767,2]
[353624125,1739964644758,-161.14,0.00014767,2]
[353624126,1739964644768,-258.56,0.00014767,2]
[353624127,1739964644778,-500.0,0.00014767,2]
[353624128,1739964644787,-1030.49,0.00014767,2]
[353624129,1739964644797,-500.0,0.00014767,2]
[353624130,1739964644806,-6904.26,0.00014767,2]
[353624131,1739964644816,-500.0,0.00014767,2]
[353624132,1739964644826,-195.50065136,0.000148,2]
[353624133,1739964644835,-195.50065136,0.000148,2]
[353624134,1739964644844,-195.5,0.000148,2]
[353624135,1739964644854,-188.23471101,0.000148,2]
[353624136,1739964644863,-188.23471101,0.000148,2]
[353624137,1739964644872,-188.23,0.000148,2]
[353624138,1739964644882,-1000.0,0.00014806,2]
[353624139,1739964644891,-500.0,0.00014806,2]
[353624140,1739964644901,-500.0,0.00014849,2]
[353624141,1739964644913,-500.0,0.00014849,2]
[353624142,1739964644922,-2537.42,0.00014849,2]
[353624143,1739964644932,-611.95,0.00014849,2]
[353624144,1739964644943,-500.0,0.00014849,2]
[353624145,1739964644953,-500.0,0.00014849,2]
[353624146,1739964644962,-766.55,0.00014849,2]
[353624147,1739964644972,-2582.71,0.00014849,2]
[353624148,1739964644981,-500.0,0.00014849,2]
[353624149,1739964644991,-3115.95,0.00014849,2]
[353624150,1739964645000,-500.0,0.00014849,2]
[353624151,1739964645010,-1030.49,0.00014849,2]
[353624152,1739964645020,-500.0,0.00014849,2]
[353624153,1739964645030,-6904.26,0.00014849,2]
[353624154,1739964645040,-500.0,0.00014849,2]
[353624155,1739964645050,-500.0,0.00014873,2]
[353624156,1739964645059,-500.0,0.00014873,2]
[353624157,1739964645069,-500.0,0.00014873,2]
[353624158,1739964645078,-500.0,0.00014873,2]
[353624159,1739964645087,-500.0,0.00014873,2]
[353624160,1739964645096,-163.32279024,0.00014873,2]
[353624161,1739964645106,-500.0,0.00014873,2]
[353624162,1739964645115,-261.70172979,0.00014873,2]
[353624163,1739964645124,-500.0,0.00014873,2]
[353624164,1739964645133,-500.0,0.00014873,2]
[353624165,1739964645142,-160.0,0.00014899,2]
[353624166,1739964645152,-564.694245,0.000149,2]
[353624167,1739964645161,-564.694245,0.000149,2]
[353624168,1739964645170,-500.0,0.000149,2]
[353624169,1739964645179,-500.0,0.000149,2]
[353624170,1739964645189,-151.0,0.000149,2]
[353624171,1739964645198,-151.0,0.000149,2]
[353624172,1739964645207,-151.0,0.000149,2]
[353624173,1739964645216,-303889.470883,0.000149,2]
[353624174,1739964645225,-10082.99462899,0.000149,2]
[353624175,1739964645235,-568.57606602,0.000149,2]
[353624176,1739964645243,-151.0,0.000149,2]
[353624177,1739964645253,-151.0,0.000149,2]
[353624178,1739964645262,-151.0,0.000149,2]
[353624179,1739964645271,-2537.42,0.00014931,2]
[353624180,1739964645281,-611.95,0.00014931,2]
[353624181,1739964645290,-500.0,0.00014931,2]
[353624182,1739964645300,-500.0,0.00014931,2]
[353624183,1739964645310,-766.55,0.00014931,2]
[353624184,1739964645319,-2582.71,0.00014931,2]
[353624185,1739964645328,-500.0,0.00014931,2]
[353624186,1739964645338,-3115.95,0.00014931,2]
[353624187,1739964645347,-413.17383213,0.00014931,2]
[353624188,1739964645356,-1030.49,0.00014931,2]
[353624189,1739964645366,-500.0,0.00014931,2]
[353624190,1739964645375,-6904.26,0.00014931,2]
[353624191,1739964645388,-500.0,0.00014931,2]
[353624192,1739964645398,-6406.91950664,0.00015,3]
[353624194,1739964645407,-200.2255343,0.00015,2]
[353624195,1739964645416,-609.20684656,0.00015,2]
[353624196,1739964645427,-2537.42,0.00015013,2]
[353624197,1739964645513,-611.95,0.00015013,2]
[353624198,1739964645523,-500.0,0.00015013,2]
[353624199,1739964645533,-766.55,0.00015013,2]
[353624200,1739964645543,-2582.71,0.00015013,2]
[353624201,1739964645552,-500.0,0.00015013,2]
[353624202,1739964645562,-3115.95,0.00015013,2]
[353624203,1739964645571,-1030.49,0.00015013,2]
[353624204,1739964645580,-612.8,0.00015013,2]
[353624205,1739964645590,-6904.26,0.00015013,2]
[353624206,1739964645601,-500.0,0.00015013,2]
[353624207,1739964645610,-170.40326072,0.00015014,2]
[353624209,1739964645619,-7438.69753278,0.00015088,2]
[353624210,1739964645629,-2537.42,0.00015095,2]
[353624211,1739964645638,-611.95,0.00015095,2]
[353624212,1739964645648,-540.26902174,0.00015095,2]
[353624213,1739964645657,-766.55,0.00015095,2]
[353624214,1739964645667,-2582.71,0.00015095,2]
[353624215,1739964645678,-245.62,0.00015095,2]
[353624216,1739964645687,-3115.95,0.00015095,2]
[353624217,1739964645696,-1030.49,0.00015095,2]
[353624218,1739964645705,-6904.26,0.00015095,2]
[353624219,1739964645715,-500.0,0.00015095,2]
[353624220,1739964645724,-2537.42,0.00015178,2]
[353624221,1739964645735,-611.95,0.00015178,2]
[353624222,1739964645745,-766.55,0.00015178,2]
[353624223,1739964645754,-2582.71,0.00015178,2]
[353624224,1739964645763,-3115.95,0.00015178,2]
[353624225,1739964645773,-1030.49,0.00015178,2]
[353624226,1739964645782,-6904.26,0.00015178,2]
[353624227,1739964645791,-347.91330065,0.00015178,2]
[353624228,1739964645802,-151.0,0.000152,2]
[353624229,1739964645814,-151.0,0.000152,2]
[353624230,1739964645824,-500.0,0.0001526,2]
[353624231,1739964645835,-500.0,0.0001526,2]
[353624233,1739964645844,-2537.42,0.0001526,2]
[353624235,1739964645853,-611.95,0.0001526,2]
[353624237,1739964645863,-766.55,0.0001526,2]
[353624238,1739964645872,-2582.71,0.0001526,2]
[353624239,1739964645882,-3115.95,0.0001526,2]
[353624241,1739964645891,-1030.49,0.0001526,2]
[353624242,1739964645901,-6904.26,0.0001526,2]
[353624243,1739964645912,-151.0,0.000153,2]
[353624244,1739964645923,-587.0,0.00015304,2]
[353624245,1739964645934,-2537.42,0.00015342,2]
[353624246,1739964645944,-611.95,0.00015342,2]
[353624247,1739964645954,-766.55,0.00015342,2]
[353624248,1739964645963,-2582.71,0.00015342,2]
[353624249,1739964645972,-3115.95,0.00015342,2]
[353624250,1739964645983,-1030.49,0.00015342,2]
[353624251,1739964645993,-6904.26,0.00015342,2]
[353624252,1739964646004,-151.0,0.000154,2]
[353624253,1739964646015,-1000.0,0.00015406,2]
[353624254,1739964646025,-1907.27261752,0.00015406,2]
[353624255,1739964646034,-572.4461124,0.00015421,2]
[353624256,1739964646044,-1001.30101814,0.00015421,2]
[353624257,1739964646053,-1000.0,0.00015421,2]
[353624258,1739964646063,-500.0,0.00015421,2]
[353624259,1739964646072,-684.97113629,0.00015421,2]
[353624260,1739964646082,-331.98758965,0.00015421,2]
[353624261,1739964646091,-522.21733561,0.00015421,2]
[353624262,1739964646100,-2537.42,0.00015424,2]
[353624263,1739964646110,-611.95,0.00015424,2]
[353624264,1739964646120,-766.55,0.00015424,2]
[353624265,1739964646129,-2582.71,0.00015424,2]
[353624266,1739964646138,-3115.95,0.00015424,2]
[353624268,1739964646148,-1030.49,0.00015424,2]
[353624270,1739964646157,-6904.26,0.00015424,2]
[353624272,1739964646166,-2537.42,0.00015506,2]
[353624273,1739964646175,-611.95,0.00015506,2]
[353624274,1739964646184,-766.55,0.00015506,2]
[353624275,1739964646193,-2582.71,0.00015506,2]
[353624276,1739964646202,-3115.95,0.00015506,2]
[353624277,1739964646211,-1030.49,0.00015506,2]
[353624278,1739964646222,-6904.26,0.00015506,2]
[353624279,1739964646231,-2537.63046274,0.00015589,2]
[353624280,1739964646240,-612.02,0.00015589,2]
[353624281,1739964646249,-766.59193591,0.00015589,2]
[353624282,1739964646259,-2582.8936736,0.00015589,2]
[353624283,1739964646268,-3115.97274185,0.00015589,2]
[353624284,1739964646277,-1030.62555301,0.00015589,2]
[353624285,1739964646287,-6904.2625,0.00015589,2]
[353624286,1739964646296,-151.0,0.000156,2]
[353624287,1739964646306,-151.0,0.000157,2]
[353624288,1739964646315,-151.0,0.000157,2]
[353624289,1739964646324,-170.40326072,0.00015736,2]
[353624290,1739964646334,-238.486342,0.00015775,2]
[353624291,1739964646343,-1500.0,0.00015808,2]
[353624292,1739964646353,-700.0,0.00015808,2]
[353624293,1739964646363,-151.0,0.000159,2]
[353624294,1739964646372,-500.0,0.00015981,2]
[353624295,1739964646387,-500.0,0.00015981,2]
[353624296,1739964646397,-151.0,0.00016,2]
[353624297,1739964646407,-151.0,0.000161,2]
[353624298,1739964646417,-152.05606217,0.000161,2]
[353624299,1739964646426,-152.05606217,0.000161,2]
[353624300,1739964646436,-152.05606217,0.000161,2]
[353624301,1739964646445,-152.05606217,0.000161,2]
[353624302,1739964646454,-152.05606217,0.000161,2]
[353624303,1739964646464,-152.05606217,0.000161,2]
[353624304,1739964646473,-152.05606217,0.000161,2]
[353624305,1739964646483,-152.05606217,0.000161,2]
[353624306,1739964646493,-152.05,0.000161,2]
[353624307,1739964646514,-164.70537214,0.000161,2]
[353624308,1739964646531,-164.70537214,0.000161,2]
[353624309,1739964646541,-164.70537214,0.000161,2]
[353624310,1739964646550,-164.70537214,0.000161,2]
[353624311,1739964646559,-164.70537214,0.000161,2]
[353624312,1739964646568,-164.70537214,0.000161,2]
[353624313,1739964646577,-164.70537214,0.000161,2]
[353624314,1739964646587,-164.7,0.000161,2]
[353624315,1739964646596,-160.0,0.00016128,3]
[353624316,1739964646606,-500.0,0.00016173,2]
[353624317,1739964646615,-500.0,0.00016173,2]
[353624318,1739964646624,-500.0,0.00016173,2]
[353624319,1739964646634,-564.694245,0.0001619,2]
[353624320,1739964646643,-564.694245,0.0001619,2]
[353624321,1739964646652,-160.0,0.00016199,2]
[353624322,1739964646662,-151.0,0.000162,2]
[353624323,1739964646671,-4688.930008,0.000162,2]
[353624324,1739964646680,-4688.930008,0.000162,2]
[353624325,1739964646689,-54994.66088463,0.000162,2]
[353624326,1739964646702,-632.253702,0.000162,2]
[353624327,1739964646717,-54994.66088462,0.000162,2]
[353624328,1739964646726,-54994.66088462,0.000162,2]
[353624329,1739964646735,-632.253702,0.000162,2]
[353624330,1739964646744,-151.0,0.000162,2]
[353624331,1739964646754,-209.95799,0.000162,2]